Cogmind - Beta 10.2 *** ADVENTURER MODE // 2021.01.02 @ 21:51:48 Player: Yog-Sothoth Result: Destroyed by YI-UF0 with YI-UF0's Doublenader Performance ------------- Evolutions (0) 0 Regions Visited (4) 800 Robots Destroyed (19) 95 Value Destroyed (349) 349 Prototype IDs (29) 580 Alien Tech Used (0) 0 Bonus (300) 300 TOTAL SCORE: 2124 Bonus ------- Aligned with FarCom 300 Cogmind --------- Core Integrity 0/250 Matter 245/300 Energy 265/265 System Corruption 0% Temperature Cool (133) Movement Flying (120) Ox1 Location -9/Mines Parts ------- > --- POWER (1) -------- Improved Ion Engine > --- PROPULSION (2) --- Flight Unit > --- UTILITY (2) ------ Weight Redist. System Signal Interpreter > --- WEAPON (2) ------- Gauss Cannon > --- INVENTORY (4) ---- Flight Unit Superbattery (2000) Sensor Array Chainsword Peak State ------------ > --- POWER ------------ Improved Ion Engine > --- PROPULSION ------- Flight Unit Flight Unit > --- UTILITY ---------- Weight Redist. System Signal Interpreter > --- WEAPON ----------- Gauss Cannon > --- INVENTORY -------- Flight Unit Flight Unit Superbattery Sensor Array [Rating: 12] Favorites ----------- Power Improved Ion Engine Engine Improved Ion Engine Power Core Light Nuclear Core Propulsion Flight Unit Wheel Wheel Flight Unit Flight Unit Utility Signal Interpreter Device Weight Redist. System Storage Small Storage Unit Processor Signal Interpreter Weapon Datajack Energy Gun Medium Laser Ballistic Gun Light Assault Rifle Ballistic Cannon Light Cannon Launcher Grenade Launcher Impact Weapon Flail Special Melee Weapon Datajack Build | -11 -10 -10 -10 -9 ------- Run | Scr Mat Min Exi Min Slots Evolved . | . . . . . Power . | . . . . . Propulsion . | . . . . . Utility . | . . . . . Weapon . | . . . . . Parts Attached 40 | 6 24 6 . 4 Power 6 | 1 3 2 . . Engine 5 | 1 2 2 . . Core 1 | . 1 . . . Reactor . | . . . . . Propulsion 15 | 2 8 4 . 1 Treads . | . . . . . Leg . | . . . . . Wheel 2 | 2 . . . . Hover . | . . . . . Flight 13 | . 8 4 . 1 Utility 5 | 1 4 . . . Device 2 | . 2 . . . Storage 1 | 1 . . . . Processor 2 | . 2 . . . Hackware . | . . . . . Protection . | . . . . . Artifact . | . . . . . Weapon 14 | 2 9 . . 3 Energy Gun 1 | 1 . . . . Energy Cannon . | . . . . . Ballistic Gun 7 | 1 6 . . . Ballistic Cannon 2 | . 1 . . 1 Launcher 1 | . . . . 1 Special Weapon . | . . . . . Impact Weapon 1 | . . . . 1 Slashing Weapon . | . . . . . Piercing Weapon . | . . . . . Special Melee Weapon 2 | . 2 . . . Unidentified Prototypes . | . . . . . Parts Lost 3 | . . 1 . 2 Power 1 | . . 1 . . Propulsion 1 | . . . . 1 Utility . | . . . . . Weapon 1 | . . . . 1 Highest Loss Streak 1 | . . 1 . 1 Average Slot Usage (%) 95 | . 92 99 100 95 Engine 9 | . 8 9 14 14 Core 4 | . 5 4 . . Flight 27 | . 26 28 28 28 Device 13 | . 13 14 14 14 Processor 10 | . 7 14 14 14 Ballistic Gun 7 | . 16 . . . Ballistic Cannon 7 | . 3 14 14 2 Impact Weapon 1 | . . . . 11 Special Melee Weapon 9 | . 6 14 14 7 Naked Turns . | . . . . . Heaviest Build 14 | 13 14 11 11 14 Greatest Support 26 | 26 26 14 14 14 Greatest Overweight (x) 1 | . 1 . . . Average Overweight (x) . | . . . . . Largest Inventory Capacity 6 | 6 6 4 4 4 Average Capacity 4 | 5 4 4 4 4 Most Carried 6 | 6 6 4 4 4 Average Carried 3 | 2 3 3 3 3 Final Capacity 6 | 6 4 4 4 4 Final Carried 6 | 6 4 4 4 4 Class Distribution -------------------- 63% | Mutant 36% | Scavenger-Mutant Dominant Class ---------------- Mutant | -10/Materials Mutant | -10/Mines Scavenger-Mutant | -10/Exiles Scavenger-Mutant | -9/Mines Resources | -11 -10 -10 -10 -9 ----------- Run | Scr Mat Min Exi Min Matter Collected 769 | 195 339 179 . 56 Remotely . | . . . . . Salvage Created 462 | . 343 119 . . Parts 37 | . 30 7 . . Haulers Intercepted 2 | . 2 . . . Recyclers Shooed . | . . . . . Parts Field Recycled . | . . . . . Retrieved Matter . | . . . . . Parts Self-Destructed . | . . . . . Prevented . | . . . . . Kills | -11 -10 -10 -10 -9 ------- Run | Scr Mat Min Exi Min Combat Hostiles Destroyed 14 | . 8 6 . . Guns 8 | . 8 . . . Cannons 6 | . . 6 . . Classes Destroyed 5 | . 4 1 . . Hauler 2 | . 2 . . . Watcher 3 | . 3 . . . Swarmer 9 | . 6 3 . . Grunt 4 | . 2 2 . . Sentry 1 | . . 1 . . Best Kill Streak 4 | . 4 4 . . Combat Bots Only 4 | . 3 4 . . Max Kills in Single Turn 1 | . 1 1 . . Gunslinging . | . . . . . Exploded . | . . . . . Melee . | . . . . . Uniques/NPCs Destroyed . | . . . . . Combat | -11 -10 -10 -10 -9 -------- Run | Scr Mat Min Exi Min Damage Taken 804 | . 179 255 . 370 Core 276 | . 40 83 . 153 Absorbed by Shields . | . . . . . Core Remaining (%) 100 | 100 . . . . Volleys Fired 78 | . 44 24 . 10 Largest 2 | . 2 1 . 1 Hottest 48 | . 40 35 . 48 Shots Fired 117 | . 83 24 . 10 Gun 83 | . 83 . . . Cannon 34 | . . 24 . 10 Launcher . | . . . . . Special . | . . . . . Kinetic 117 | . 83 24 . 10 Thermal . | . . . . . Explosive . | . . . . . Electromagnetic . | . . . . . Robot Hit Streak 11 | . 7 11 . 11 Robot Miss Streak 3 | . 3 1 . . Penetration Max . | . . . . . Secondary Targets 4 | . 4 . . . Max Gunslinging Chain 1 | . 1 . . . Shots Hit Robots 84 | . 54 19 . 11 Core Hits 34 | . 24 9 . 1 Critical Hits 2 | . . . . 2 Critical Kills . | . . . . . Critical Parts Destroyed 2 | . . . . 2 Melee Attacks 2 | . 1 . . 1 Impact 1 | . . . . 1 Slashing . | . . . . . Piercing . | . . . . . Sneak Attacks . | . . . . . Combat Hostiles . | . . . . . Follow-up Attacks . | . . . . . Damage Inflicted 1005 | . 377 323 . 305 Guns 377 | . 377 . . . Cannons 601 | . . 323 . 278 Explosions . | . . . . . Melee 27 | . . . . 27 Ramming . | . . . . . Kinetic 978 | . 377 323 . 278 Thermal . | . . . . . Explosive . | . . . . . Electromagnetic . | . . . . . Impact 27 | . . . . 27 Slashing . | . . . . . Piercing . | . . . . . Highest Corruption . | . . . . . Average Corruption . | . . . . . Corruption Purged . | . . . . . Overload Shots . | . . . . . Overflow Damage 2 | . . . . 2 Projectiles 2 | . . . . 2 Explosions . | . . . . . Melee . | . . . . . Knockbacks 2 | . . . . 2 Impact 1 | . . . . 1 Kinetic . | . . . . . Secondary 1 | . . . . 1 Self-Inflicted Damage . | . . . . . Shots . | . . . . . Rammed . | . . . . . Targets Rammed . | . . . . . Kicked . | . . . . . Crushed . | . . . . . Highest Temperature 133 | . 21 58 . 133 Average Temperature 17 | . 5 15 . 71 Received Heat Transfer 165 | . 33 96 . 36 Siege Activations . | . . . . . Robots Corrupted . | . . . . . Combat Hostiles . | . . . . . Parts Fried . | . . . . . Impact Corruptions . | . . . . . Robots Melted . | . . . . . Combat Hostiles . | . . . . . Parts Melted . | . . . . . Heat Transferred . | . . . . . Parts Sabotaged . | . . . . . Parts Stolen . | . . . . . Parts Stripped . | . . . . . Power Chain Reactions . | . . . . . Missiles Intercepted . | . . . . . Alert | -11 -10 -10 -10 -9 ------- Run | Scr Mat Min Exi Min Peak Influence 313 | . 313 230 . 60 Initial 40 | . . 40 . . Average 102 | . 121 132 . 22 Maximum Alert Level 1 | . 1 1 . . Low Security (%) 84 | 100 90 64 . 100 Level 1 15 | . 9 35 . . Level 2 . | . . . . . Level 3 . | . . . . . Level 4 . | . . . . . Level 5 . | . . . . . High Security . | . . . . . Max Security . | . . . . . Squads Dispatched 3 | . 2 . . 1 Investigation 3 | . 2 . . 1 Extermination . | . . . . . Reinforcement . | . . . . . Assault . | . . . . . Garrison . | . . . . . Intercept . | . . . . . Construction Impeded . | . . . . . Haulers Reinforced . | . . . . . Stealth | -11 -10 -10 -10 -9 --------- Run | Scr Mat Min Exi Min Distress Signals 5 | . 3 . . 2 Communications Jammed . | . . . . . Distress Signals . | . . . . . Times Spotted 31 | . 12 9 . 10 Peak Tracking Total 14 | . 4 2 . 14 Tactical Retreats 3 | . . 1 . 2 Traps | -11 -10 -10 -10 -9 ------- Run | Scr Mat Min Exi Min Traps Triggered . | . . . . . Indirectly . | . . . . . Trap Hack Attempts 18 | . 18 . . . Triggered . | . . . . . Disarmed . | . . . . . Reprogrammed 6 | . 6 . . . Reused . | . . . . . Traps Extracted . | . . . . . Installed . | . . . . . Triggered . | . . . . . Machines | -11 -10 -10 -10 -9 ---------- Run | Scr Mat Min Exi Min Machines Disabled . | . . . . . Max in Single Turn . | . . . . . Machines Sabotaged . | . . . . . Garrisons Compromised . | . . . . . Overloaded Fab Kills . | . . . . . Fab Network Shutdowns . | . . . . . Hacking | -11 -10 -10 -10 -9 --------- Run | Scr Mat Min Exi Min Machines Accessed 10 | . 8 . 1 1 Terminals 7 | . 7 . . . Fabricators . | . . . . . Repair Stations . | . . . . . Recycling Units 1 | . 1 . . . Scanalyzers . | . . . . . Garrison Access . | . . . . . Total Hacks 34 | . 32 . 1 1 Successful 22 | . 20 . 1 1 Failed 11 | . 11 . . . Catastrophic . | . . . . . Database Lockouts 1 | . 1 . . . Manual 1 | . . . 1 . Terminals 31 | . 31 . . . Fabricators . | . . . . . Repair Stations . | . . . . . Recycling Units 1 | . 1 . . . Scanalyzers . | . . . . . Garrison Access . | . . . . . Terminal Hacks 21 | . 19 . 1 1 Record 6 | . 6 . . . Prototype ID Bank 3 | . 3 . . . Open Door 1 | . . . . 1 Emergency Access Points 1 | . 1 . . . Locate Traps 1 | . 1 . . . Reprogram Traps 1 | . 1 . . . Dispatch Records 1 | . 1 . . . Security Status 1 | . 1 . . . Patrol Status 1 | . 1 . . . Transport Status 1 | . 1 . . . Recall Investigation 1 | . 1 . . . Hauler Manifests 1 | . 1 . . . Zone Layout 1 | . 1 . . . EX-Prototype ID Bank 1 | . . . 1 . Fabricator Hacks . | . . . . . Repair Station Hacks . | . . . . . Recycling Unit Hacks 1 | . 1 . . . Report Inventory 1 | . 1 . . . Scanalyzer . | . . . . . Garrison Access Hacks . | . . . . . Unauthorized Hacks . | . . . . . Terminals . | . . . . . Fabricators . | . . . . . Repair Stations . | . . . . . Recycling Units . | . . . . . Scanalyzers . | . . . . . Garrison Access . | . . . . . Data Cores Recovered . | . . . . . Used . | . . . . . Hacking Detections 7 | . 7 . . . Full Trace Events 4 | . 4 . . . Feedback Events . | . . . . . Feedback Blocked . | . . . . . Robot Schematics Acquired . | . . . . . Robots Built . | . . . . . Matter . | . . . . . Time . | . . . . . Total Robot Build Rating . | . . . . . Part Schematics Acquired . | . . . . . Parts Built . | . . . . . Matter . | . . . . . Time . | . . . . . Total Part Build Rating . | . . . . . Parts Repaired . | . . . . . Time . | . . . . . Parts Recycled . | . . . . . Recycled Matter . | . . . . . Retrieved Matter . | . . . . . Retrieved Components . | . . . . . Parts Scanalyzed . | . . . . . Part Schematics Acquired . | . . . . . Parts Damaged . | . . . . . Bothacking | -11 -10 -10 -10 -9 ------------ Run | Scr Mat Min Exi Min Used RIF Installer . | . . . . . Robots Hacked 1 | . 1 . . . Non-combat 1 | . 1 . . . Combat . | . . . . . Robot Hacks Applied 1 | . 1 . . . parse_system 1 | . 1 . . . Relay Couplers Released . | . . . . . Robots Rewired . | . . . . . Allies Hacked . | . . . . . Hacks Repelled . | . . . . . Allies | -11 -10 -10 -10 -9 -------- Run | Scr Mat Min Exi Min Total Allies . | . . . . . Largest Group . | . . . . . Highest-Rated Group . | . . . . . Highest-Rated Ally . | . . . . . Total Orders . | . . . . . Ally Attacks . | . . . . . Total Damage . | . . . . . Kills . | . . . . . Allies Corrupted . | . . . . . Allies Melted . | . . . . . Intel | -11 -10 -10 -10 -9 ------- Run | Scr Mat Min Exi Min Robot Analysis Total . | . . . . . Derelict Logs Recovered 3 | . . 2 . 1 Drone Launches . | . . . . . Drone Recoveries . | . . . . . Exploration | -11 -10 -10 -10 -9 ------------- Run | Scr Mat Min Exi Min Turns Passed 1507 | 61 682 426 90 248 Spaces Moved 2285 | 52 873 796 234 330 Core 2 | 2 . . . . Treads . | . . . . . Legs . | . . . . . Wheels 74 | 50 24 . . . Hover . | . . . . . Flight 2209 | . 849 796 234 330 Fastest Speed 37 | 50 37 37 37 37 Average Speed 38 | 88 38 37 37 37 Slowest Speed 120 | 90 120 37 37 37 Overloaded Moves . | . . . . . Propulsion Burnouts . | . . . . . Robots Hopped 2 | . 1 . . 1 Cave-ins Triggered . | . . . . . Exploration Rate (%) 67 | 3 98 99 60 79 Regions Visited 4 Branch Regions 3 Pre-discovered Areas 2 | . . 1 . 1 Known Exits Taken 3 | . 1 1 1 . Unknown Exits Taken 1 | 1 . . . . Scrap Searched 2 | . . 1 . 1 Spaces Dug . | . . . . . Terrain Destroyed . | . . . . . Melee . | . . . . . Projectile . | . . . . . AOE . | . . . . . Terrain Rammed . | . . . . . Walls Destroyed . | . . . . . Machines Disabled . | . . . . . Actions | -11 -10 -10 -10 -9 --------- Run | Scr Mat Min Exi Min Total 2803 | 63 1157 902 237 444 Wait 323 | . 156 72 . 95 Move 2277 | 51 870 795 233 328 Hop 2 | . 1 . . 1 Pick Up 25 | 6 15 1 2 1 Fast Attach 16 | 6 5 2 . 3 Attach 6 | . 6 . . . Detach 1 | . 1 . . . Swap 18 | . 13 4 . 1 Drop 37 | . 27 4 2 4 Fire 78 | . 44 24 . 10 Melee 2 | . 1 . . 1 Ram . | . . . . . Kick . | . . . . . Crush . | . . . . . Escape Stasis . | . . . . . Rewire . | . . . . . Trap 18 | . 18 . . . Miscellaneous . | . . . . . Route ------- -11/Scrapyard -10/Materials (discovered 5 exits: *Mat x3 / *Min x2) -10/Mines (discovered 3 exits: *Mat x2 / *Exi) -10/Exiles -9/Mines (discovered 1 exit: *Mat) History --------- Turn | Location | Event 11 | -11/Scrapyard | Discovered new exit (range 15) 62 | -11/Scrapyard | Entered Materials 319 | -10/Materials | Discovered new exit (range 16) 321 | -10/Materials | Build established: Mutant 483 | -10/Materials | Central database locked down 489 | -10/Materials | Discovered new exit (range 14) 506 | -10/Materials | Discovered new exit (range 16) 533 | -10/Materials | Identified exit to Materials 551 | -10/Materials | Identified exit to Mines 606 | -10/Materials | Discovered exit to Materials (range 4) 730 | -10/Materials | Discovered exit to Mines (range 8) 744 | -10/Materials | Entered Mines 752 | -10/Mines | Learned location of Zion (-7) 761 | -10/Mines | Met a Derelict bent on vengeance 906 | -10/Mines | Learned Materials security intel 1016 | -10/Mines | Discovered exit to Materials (range 9) 1087 | -10/Mines | Deemed a non-threat by the Exiles lab entrance 1125 | -10/Mines | Discovered exit to Materials (range 8) 1168 | -10/Mines | Discovered new exit (range 5) 1169 | -10/Mines | Identified exit to Exiles 1170 | -10/Mines | Entered Exiles 1179 | -10/Exiles | Met 8R-AWN 1186 | -10/Exiles | Met EX-HEX 1198 | -10/Exiles | Met EX-BIN 1202 | -10/Exiles | Aligned with FarCom system 1202 | -10/Exiles | Given EX-Vault access code 1211 | -10/Exiles | Opened EX-Vault 1214 | -10/Exiles | Found Superbattery 1223 | -10/Exiles | Warned to stay clear of 0b10 Research branches 1233 | -10/Exiles | Met EX-DEC 1256 | -10/Exiles | Discovered new exit (range 11) 1259 | -10/Exiles | Identified exit to Mines 1260 | -10/Exiles | Left Exiles lab with Superbattery 1260 | -10/Exiles | Entered Mines 1265 | -9/Mines | Discovered new exit (range 8) 1267 | -9/Mines | Assembled infested the area 1270 | -9/Mines | Identified exit to Materials 1289 | -9/Mines | Build established: Scavenger-Mutant 1383 | -9/Mines | Core integrity fell below 50% 1409 | -9/Mines | YI-UF0 nonchalantly dropped a Grenade Launcher on the ground 1457 | -9/Mines | Met a Derelict shopkeep closing up shop 1479 | -9/Mines | Learned location of Storage (-7) 1499 | -9/Mines | Core integrity fell below 20% 1508 | -9/Mines | Destroyed by YI-UF0 with YI-UF0's Doublenader Last Messages --------------- ZB-8KQ(g): "Take whatever you can and run for it!" Dropped Flight Unit. Acquired Chainsword. Acquired 49 matter. Acquired derelict log, extracted data. World map updated: -7/Storage. YI-UF0: "BWOOM!" YI-UF0 suffers critical hit. Destroyed Imp. Deuterium Engine. The unstable cave ceiling collapses. Destroyed Shock Absorption System. YI-UF0 suffers critical hit. Destroyed Carbon-fiber Leg. The unstable cave ceiling collapses. Slug penetrates YI-UF0. The unstable cave ceiling collapses. Flight Unit destroyed. The unstable cave ceiling collapses. Slug penetrates YI-UF0. The unstable cave ceiling collapses. Map ----- +----------------------------------------------------+ | | | | | | | ######???????????????????????????????????????????? | | #""""##??????????????????????????????????????????? | | " !=]"#######????????????????????????????????????? | | "=/ !"## ##???????????????????????????????????? | | #] ## #???????????????????????????????????? | | ## ## #???????????????????????????????????? | | X #???????????????????????????????????? | | ##??????????????????????????????????? | | #??????????????????????????????????? | | #??????????????????????????????????? | | ! #??????????????????????????????????? | | ### #%!##??????????????????????????????????? | | ??## ##! #???????????????????????????????????? | | ???## ### #???????????????????????????????????? | | #########?# #????????##??##??????????? ?????????? | | #???# #??????### ## ####???????? ?????????? | | ### #???# #####??# ##??????? ?????????? | | #?# #???#% #??### #??????? #????????? | | #?# #####%= ##??# ##????## #????????? | | #?# ! ##???# ##??## ##???????? | | ### ##????# # ## #???????? | | ####### ##?????# # #???????? | | #????# ###??????# @ #???????? | | ###### ########## ###???# ##??????? | | ## %= ###????## #??????? | | ### ############### %! ##??????? ##?????? | | ###?# ##????????????# * ##???????# #?????? | | #???# #######?????# #????##### #?????? | | ##??# # ##???? #####????# #??????? | | #??# #?### ?????????# ##??????? | | ##??# ### #= #????????# # ##??????? | | "#?## "## % ###??????# ## ##?????? | | ### # !g ######## ## ###???? | | # ## ## ##?## | | ### ### | | ### # ###########?## | | ######### ##????????????#### | | ##??????### ### ###????????????????## | | ???????? # ####?????????????????????# ### | | #?????# #% #????????????????????????# #?## | | ###?????## ## ##????????????????????????# #??? | | ????????### ?# ##???????????####??????????# #??? | | #??????????####%#???????????## ##?????????# ##?? | | ?????????????? %#??????????## ##????????# #?? | | ????????????? # #?????????## ##???????### #?? | | ????????????#?# #######??## """" #?????????# #?? | | ??????????????# #### """" #####?????# ### | +----------------------------------------------------+ Best States ------------- Heat Dissipation 25 Energy Generation 14 Energy Capacity 265 Matter Stores 300 Matter Capacity 300 Sight Range 16 Terrain Scan Range 14 Terrain Scan Density 10 Additional Mass Support 6 Resistance: KI 20 Resistance: TH 20 Resistance: EX 20 Resistance: EM 20 Resistance: I 20 Resistance: S 20 Resistance: P 20 Evasion (%) 62 Offensive Hacking 10 Item Schematics ----------------- None Robot Schematics ------------------ None Fabricated ------------ Nothing Alien Tech Used ----------------- None Achievements -------------- None Challenges ------------ None Game ------ Seed LongswordFlightInterpreter Manual? 0 Play Time 00:32:06 Cumulative 8.1 hours Start 2021.01.02 @ 21:22:21 End 2021.01.02 @ 21:51:48 Sessions 1 Manual Loads 0 Difficulty Adventurer Special Mode None Game No. 18 Rogue 0 Adventurer 18 Explorer 0 Win Type - Total 0 Types 0/0/0/0/0/0/0/0/0 Lore% 12 Gallery% 19 Achievement% 16 Wizard Run 0 Options --------- ASCII 0 Keyboard 0 Movement Mouse Keybinds 0 Fullscreen 2 Font 20/SmallcapsGlow Map View 66x50 Tactical HUD 0 Map Filters NONE Filters NONE Steam 1 RUN: 0194acf2-53ae-4ad9-95d5-b1b9034bec9f